[Event "Live Chess"]
[Site "Chess.com"]
[Date "2024.06.01"]
[Round "-"]
[White "Kyrylo7770"]
[Black "AnotherOneBadPlayer"]
[Result "0-1"]
[WhiteElo "1681"]
[BlackElo "2200"]
[TimeControl "300"]
[EndTime "11:43:12 PDT"]
[Termination "AnotherOneBadPlayer won by checkmate"]

1. d4 {[%clk 0:04:59.6]} 1... Nf6 {[%clk 0:04:56.7]} 2. Nf3 {[%clk 0:04:58.9]}
2... g6 {[%clk 0:04:55.7]} 3. Bg5 {[%clk 0:04:57.8]} 3... Bg7 {[%clk 0:04:55.2]}
4. h4 {[%clk 0:04:56.8]} 4... d6 {[%clk 0:04:53.1]} 5. e3 {[%clk 0:04:55.9]}
5... Bg4 {[%clk 0:04:50.4]} 6. Be2 {[%clk 0:04:55.2]} 6... O-O {[%clk
0:04:49.7]} 7. Bxf6 {[%clk 0:04:51.8]} 7... Bxf6 {[%clk 0:04:47.7]} 8. h5 {[%clk
0:04:50.8]} 8... Bxh5 {[%clk 0:04:44.9]} 9. Nfd2 {[%clk 0:04:47.2]} 9... Bxe2
{[%clk 0:04:42.8]} 10. Qxe2 {[%clk 0:04:45.4]} 10... Bg7 {[%clk 0:04:39.1]} 11.
Qg4 {[%clk 0:04:42.7]} 11... Nd7 {[%clk 0:04:34.9]} 12. Nf3 {[%clk 0:04:38.1]}
12... c5 {[%clk 0:04:29.8]} 13. c3 {[%clk 0:04:23.3]} 13... e5 {[%clk
0:04:20.6]} 14. dxe5 {[%clk 0:04:19.4]} 14... dxe5 {[%clk 0:04:14.9]} 15. Nbd2
{[%clk 0:04:16.5]} 15... Nf6 {[%clk 0:04:12.3]} 16. Qc4 {[%clk 0:04:12.2]} 16...
Qe7 {[%clk 0:04:02.9]} 17. O-O-O {[%clk 0:04:10.2]} 17... b5 {[%clk 0:03:58.4]}
18. Qxb5 {[%clk 0:04:08.8]} 18... Rfb8 {[%clk 0:03:53.6]} 19. Qc4 {[%clk
0:04:06]} 19... a5 {[%clk 0:03:44.1]} 20. Ng5 {[%clk 0:03:57]} 20... a4 {[%clk
0:03:30.8]} 21. a3 {[%clk 0:03:54.7]} 21... Rb7 {[%clk 0:03:16.7]} 22. Qh4
{[%clk 0:03:46.4]} 22... h6 {[%clk 0:03:09.3]} 23. Nge4 {[%clk 0:03:44.1]} 23...
Ra6 {[%clk 0:02:56.1]} 24. Nxf6+ {[%clk 0:03:39.2]} 24... Bxf6 {[%clk
0:02:30.1]} 25. Qxh6 {[%clk 0:03:31.3]} 25... Bg7 {[%clk 0:02:28.8]} 26. Qh7+
{[%clk 0:03:30.5]} 26... Kf8 {[%clk 0:02:27.2]} 27. Qh3 {[%clk 0:03:28.8]} 27...
f5 {[%clk 0:02:07.2]} 28. Nc4 {[%clk 0:03:21.5]} 28... Qe6 {[%clk 0:01:59.9]}
29. Qh4 {[%clk 0:03:18]} 29... Rb8 {[%clk 0:01:35.5]} 30. Rd8+ {[%clk
0:03:13.4]} 30... Rxd8 {[%clk 0:01:34]} 31. Qxd8+ {[%clk 0:03:12.9]} 31... Kf7
{[%clk 0:01:33.3]} 32. Rd1 {[%clk 0:03:10.5]} 32... g5 {[%clk 0:01:13]} 33. Nd6+
{[%clk 0:02:50.8]} 33... Kg6 {[%clk 0:01:07.4]} 34. e4 {[%clk 0:02:19.1]} 34...
fxe4 {[%clk 0:00:50.7]} 35. Nxe4 {[%clk 0:02:14.4]} 35... Rc6 {[%clk 0:00:40.4]}
36. Qxg5+ {[%clk 0:02:11.2]} 36... Kf7 {[%clk 0:00:38.5]} 37. Qh5+ {[%clk
0:02:05.3]} 37... Ke7 {[%clk 0:00:31.5]} 38. Ng5 {[%clk 0:02:00]} 38... Qf5
{[%clk 0:00:23.2]} 39. g3 {[%clk 0:01:18.1]} 39... Bh6 {[%clk 0:00:19.5]} 40.
Qxh6 {[%clk 0:01:15.3]} 40... Rxh6 {[%clk 0:00:18.5]} 41. f4 {[%clk 0:00:50.4]}
41... exf4 {[%clk 0:00:17.5]} 42. Re1+ {[%clk 0:00:49]} 42... Kd6 {[%clk
0:00:16.4]} 43. Rd1+ {[%clk 0:00:47.9]} 43... Kc6 {[%clk 0:00:15.7]} 44. c4
{[%clk 0:00:39.1]} 44... fxg3 {[%clk 0:00:14.3]} 45. Rd5 {[%clk 0:00:34.7]}
45... Rh1+ {[%clk 0:00:13.1]} 46. Kd2 {[%clk 0:00:32.9]} 46... Qf2+ {[%clk
0:00:12.5]} 47. Kd3 {[%clk 0:00:30.5]} 47... Rd1+ {[%clk 0:00:11.9]} 48. Ke4
{[%clk 0:00:30.2]} 48... Re1+ {[%clk 0:00:11.4]} 49. Kd3 {[%clk 0:00:28.7]}
49... Qe3+ {[%clk 0:00:10.7]} 50. Kc2 {[%clk 0:00:27.7]} 50... Rc1# {[%clk
0:00:10.3]} 0-1

[Event "Live Chess"]
[Site "Chess.com"]
[Date "2024.06.01"]
[Round "-"]
[White "Mof05"]
[Black "booktrunk"]
[Result "0-1"]
[WhiteElo "1034"]
[BlackElo "1371"]
[TimeControl "300"]
[EndTime "11:43:20 PDT"]
[Termination "booktrunk won by checkmate"]

1. d4 {[%clk 0:04:56.4]} 1... b6 {[%clk 0:04:57.7]} 2. Bf4 {[%clk 0:04:54]} 2...
e6 {[%clk 0:04:51.5]} 3. e3 {[%clk 0:04:52.4]} 3... Bb7 {[%clk 0:04:50.8]} 4.
Nf3 {[%clk 0:04:50.1]} 4... h6 {[%clk 0:04:49.6]} 5. Bd3 {[%clk 0:04:40.1]} 5...
Nf6 {[%clk 0:04:47.7]} 6. h3 {[%clk 0:04:36.2]} 6... Nh5 {[%clk 0:04:46.1]} 7.
Bh2 {[%clk 0:04:34.6]} 7... d5 {[%clk 0:04:38]} 8. c3 {[%clk 0:04:29.9]} 8...
Bd6 {[%clk 0:04:36.7]} 9. Bxd6 {[%clk 0:04:23.3]} 9... Qxd6 {[%clk 0:04:36.6]}
10. Nbd2 {[%clk 0:04:21.9]} 10... O-O {[%clk 0:04:35.3]} 11. Ne5 {[%clk
0:04:20.7]} 11... Nf6 {[%clk 0:04:30.9]} 12. Ndf3 {[%clk 0:04:19.4]} 12... Ne4
{[%clk 0:04:27.3]} 13. Qc2 {[%clk 0:04:11.8]} 13... f5 {[%clk 0:04:21.3]} 14.
O-O-O {[%clk 0:03:59.6]} 14... Nd7 {[%clk 0:04:11.5]} 15. Rdg1 {[%clk
0:03:54.1]} 15... Nxe5 {[%clk 0:04:08.7]} 16. Nxe5 {[%clk 0:03:52.9]} 16... c5
{[%clk 0:04:01.5]} 17. g4 {[%clk 0:03:09.7]} 17... cxd4 {[%clk 0:03:58.2]} 18.
exd4 {[%clk 0:03:02.8]} 18... f4 {[%clk 0:03:43.1]} 19. h4 {[%clk 0:02:49.4]}
19... a5 {[%clk 0:03:30.1]} 20. g5 {[%clk 0:02:46]} 20... h5 {[%clk 0:03:17.4]}
21. Qe2 {[%clk 0:02:37.1]} 21... Ba6 {[%clk 0:03:16.4]} 22. Bxa6 {[%clk
0:02:34.5]} 22... b5 {[%clk 0:03:14.5]} 23. Bxb5 {[%clk 0:02:31.9]} 23... Rfb8
{[%clk 0:03:12.2]} 24. a4 {[%clk 0:02:23.9]} 24... Rb7 {[%clk 0:03:01.3]} 25.
Qxh5 {[%clk 0:02:21.6]} 25... Rab8 {[%clk 0:02:59.4]} 26. g6 {[%clk 0:01:59.4]}
26... Nf6 {[%clk 0:02:49.3]} 27. Qf3 {[%clk 0:01:48.6]} 27... Rc8 {[%clk
0:02:41.1]} 28. h5 {[%clk 0:01:43.2]} 28... Ne4 {[%clk 0:02:37]} 29. h6 {[%clk
0:01:39.2]} 29... Nxc3 {[%clk 0:02:35.6]} 30. bxc3 {[%clk 0:01:35.3]} 30... Qa3+
{[%clk 0:02:33.1]} 31. Kd2 {[%clk 0:01:23.6]} 31... Qb2+ {[%clk 0:02:30.9]} 32.
Kd3 {[%clk 0:01:22]} 32... Rxc3# {[%clk 0:02:28.2]} 0-1

[Event "Live Chess"]
[Site "Chess.com"]
[Date "2024.06.01"]
[Round "-"]
[White "chess5013"]
[Black "ACM42"]
[Result "0-1"]
[WhiteElo "1282"]
[BlackElo "2207"]
[TimeControl "300"]
[EndTime "11:43:32 PDT"]
[Termination "ACM42 won by checkmate"]

1. d4 {[%clk 0:04:58]} 1... Nf6 {[%clk 0:04:59]} 2. c4 {[%clk 0:04:56.5]} 2...
g6 {[%clk 0:03:51]} 3. g3 {[%clk 0:04:54.4]} 3... Bg7 {[%clk 0:03:49.2]} 4. Nf3
{[%clk 0:04:53.3]} 4... O-O {[%clk 0:03:43.8]} 5. Bg2 {[%clk 0:04:51.8]} 5... d6
{[%clk 0:03:39.4]} 6. O-O {[%clk 0:04:50.6]} 6... c5 {[%clk 0:03:35.7]} 7. Nc3
{[%clk 0:04:48.5]} 7... Nc6 {[%clk 0:03:34.1]} 8. d5 {[%clk 0:04:46.4]} 8... Na5
{[%clk 0:03:26]} 9. b3 {[%clk 0:04:41.5]} 9... a6 {[%clk 0:03:24.5]} 10. Bb2
{[%clk 0:04:37.9]} 10... b5 {[%clk 0:03:20.7]} 11. e4 {[%clk 0:04:31.6]} 11...
Rb8 {[%clk 0:03:17.1]} 12. cxb5 {[%clk 0:04:19.5]} 12... axb5 {[%clk 0:03:15.4]}
13. Qd3 {[%clk 0:04:11]} 13... c4 {[%clk 0:03:12.2]} 14. bxc4 {[%clk 0:04:08.1]}
14... bxc4 {[%clk 0:03:11.1]} 15. Qd2 {[%clk 0:04:05.7]} 15... Nxe4 {[%clk
0:03:08.7]} 16. Nxe4 {[%clk 0:04:02.2]} 16... Rxb2 {[%clk 0:03:07.2]} 17. Qe3
{[%clk 0:03:43.7]} 17... Qb6 {[%clk 0:02:56.7]} 18. Qxb6 {[%clk 0:03:41.7]}
18... Rxb6 {[%clk 0:02:56.5]} 19. Rac1 {[%clk 0:03:38.6]} 19... Bf5 {[%clk
0:02:52.8]} 20. Nc3 {[%clk 0:03:31.7]} 20... Rb2 {[%clk 0:02:39.5]} 21. a4
{[%clk 0:03:12.9]} 21... Rfb8 {[%clk 0:02:35.8]} 22. Nb5 {[%clk 0:03:08.7]}
22... Rb4 {[%clk 0:02:28.3]} 23. Rfe1 {[%clk 0:03:01.9]} 23... Rxa4 {[%clk
0:02:24.8]} 24. Nc3 {[%clk 0:02:52.1]} 24... Ra3 {[%clk 0:02:23.6]} 25. Ne4
{[%clk 0:02:44.4]} 25... c3 {[%clk 0:02:07.7]} 26. Re3 {[%clk 0:02:25.4]} 26...
Nb3 {[%clk 0:01:59.6]} 27. Rc2 {[%clk 0:02:09.2]} 27... Nc5 {[%clk 0:01:47.5]}
28. Nfg5 {[%clk 0:01:54.6]} 28... Rb1+ {[%clk 0:01:45.3]} 29. Bf1 {[%clk
0:01:47.9]} 29... Nxe4 {[%clk 0:01:43.8]} 30. Nxe4 {[%clk 0:01:46]} 30... Bh3
{[%clk 0:01:42.2]} 31. Nd2 {[%clk 0:01:26.6]} 31... cxd2 {[%clk 0:01:37.3]} 32.
Rc8+ {[%clk 0:01:18.5]} 32... Bf8 {[%clk 0:01:35.2]} 33. Rxe7 {[%clk 0:01:10.4]}
33... Rxf1# {[%clk 0:01:33.1]} 0-1

[Event "Live Chess"]
[Site "Chess.com"]
[Date "2024.06.01"]
[Round "-"]
[White "Colm_Buckley"]
[Black "grandmaster1707"]
[Result "1-0"]
[WhiteElo "1818"]
[BlackElo "1464"]
[TimeControl "300"]
[EndTime "11:43:32 PDT"]
[Termination "Colm_Buckley won by resignation"]

1. d4 {[%clk 0:04:57.9]} 1... Nf6 {[%clk 0:04:58.7]} 2. c4 {[%clk 0:04:57.1]}
2... g6 {[%clk 0:04:58.3]} 3. Nc3 {[%clk 0:04:56.3]} 3... Bg7 {[%clk 0:04:58]}
4. e4 {[%clk 0:04:55.1]} 4... d6 {[%clk 0:04:57.7]} 5. Nf3 {[%clk 0:04:52.8]}
5... O-O {[%clk 0:04:57.2]} 6. Be2 {[%clk 0:04:51.8]} 6... e5 {[%clk 0:04:55.5]}
7. dxe5 {[%clk 0:04:49.1]} 7... dxe5 {[%clk 0:04:55]} 8. Qc2 {[%clk 0:04:47.7]}
8... Nc6 {[%clk 0:04:51.2]} 9. Be3 {[%clk 0:04:43.3]} 9... Bg4 {[%clk
0:04:49.4]} 10. O-O {[%clk 0:04:39.4]} 10... Bxf3 {[%clk 0:04:47.8]} 11. Bxf3
{[%clk 0:04:36.9]} 11... Nd4 {[%clk 0:04:47.1]} 12. Bxd4 {[%clk 0:04:32.1]}
12... exd4 {[%clk 0:04:45.4]} 13. Nd5 {[%clk 0:04:28.3]} 13... Nxd5 {[%clk
0:04:43.6]} 14. exd5 {[%clk 0:04:20.8]} 14... h5 {[%clk 0:04:31]} 15. Rad1
{[%clk 0:04:18.1]} 15... h4 {[%clk 0:04:22.5]} 16. h3 {[%clk 0:04:07.4]} 16...
Qg5 {[%clk 0:04:17.6]} 17. Qe4 {[%clk 0:03:41.3]} 17... Rae8 {[%clk 0:04:14.1]}
18. Qg4 {[%clk 0:03:39.1]} 18... Qxg4 {[%clk 0:04:09.2]} 19. hxg4 {[%clk
0:03:33.6]} 19... f5 {[%clk 0:04:05]} 20. gxf5 {[%clk 0:03:31.8]} 20... Rxf5
{[%clk 0:04:03.5]} 21. b3 {[%clk 0:03:26.4]} 21... h3 {[%clk 0:04:01.6]} 22. Rd3
{[%clk 0:03:12.9]} 22... hxg2 {[%clk 0:03:59.9]} 23. Kxg2 {[%clk 0:03:05.7]}
23... Rg5+ {[%clk 0:03:52.4]} 24. Kh3 {[%clk 0:03:04.1]} 24... Kf7 {[%clk
0:03:49.5]} 25. Bg4 {[%clk 0:02:55.7]} 25... Be5 {[%clk 0:03:41.4]} 26. f4
{[%clk 0:02:47.4]} 26... Rxg4 {[%clk 0:03:30.9]} 27. fxe5+ {[%clk 0:02:41.2]}
1-0

[Event "Live Chess"]
[Site "Chess.com"]
[Date "2024.06.01"]
[Round "-"]
[White "NeilDruggan73"]
[Black "dhairyapandyauk"]
[Result "1-0"]
[WhiteElo "1718"]
[BlackElo "1629"]
[TimeControl "300"]
[EndTime "11:43:34 PDT"]
[Termination "NeilDruggan73 won by checkmate"]

1. d4 {[%clk 0:04:55.2]} 1... Nf6 {[%clk 0:04:58.5]} 2. Bg5 {[%clk 0:04:51.3]}
2... e6 {[%clk 0:04:56.8]} 3. e4 {[%clk 0:04:48.6]} 3... h6 {[%clk 0:04:55.7]}
4. Bxf6 {[%clk 0:04:45.9]} 4... Qxf6 {[%clk 0:04:55.3]} 5. c3 {[%clk 0:04:44.9]}
5... d5 {[%clk 0:04:52.4]} 6. e5 {[%clk 0:04:40]} 6... Qg6 {[%clk 0:04:51.2]} 7.
Nf3 {[%clk 0:04:38.4]} 7... c5 {[%clk 0:04:49.7]} 8. Nbd2 {[%clk 0:04:28.6]}
8... Nc6 {[%clk 0:04:48.3]} 9. g3 {[%clk 0:04:22.1]} 9... cxd4 {[%clk
0:04:46.6]} 10. cxd4 {[%clk 0:04:20]} 10... Bb4 {[%clk 0:04:36.2]} 11. a3 {[%clk
0:04:17.9]} 11... Ba5 {[%clk 0:04:34.3]} 12. Bb5 {[%clk 0:04:10.9]} 12... Bd7
{[%clk 0:04:29.3]} 13. O-O {[%clk 0:04:05.9]} 13... Bb6 {[%clk 0:04:27.3]} 14.
Nb3 {[%clk 0:04:02]} 14... a6 {[%clk 0:04:23.1]} 15. Bxc6 {[%clk 0:03:57.8]}
15... bxc6 {[%clk 0:04:15.3]} 16. Nc5 {[%clk 0:03:56.3]} 16... Bc8 {[%clk
0:04:06]} 17. Qa4 {[%clk 0:03:52.2]} 17... O-O {[%clk 0:03:54.8]} 18. Qxc6
{[%clk 0:03:50.6]} 18... Rb8 {[%clk 0:03:49.8]} 19. Nd7 {[%clk 0:03:40.1]} 19...
Bxd7 {[%clk 0:03:48.4]} 20. Qxd7 {[%clk 0:03:38.4]} 20... Qe4 {[%clk 0:03:44.9]}
21. Kg2 {[%clk 0:03:24.5]} 21... Bxd4 {[%clk 0:03:38.9]} 22. Rfe1 {[%clk
0:03:24.1]} 22... Qg4 {[%clk 0:03:37.7]} 23. h3 {[%clk 0:03:16.8]} 23... Qg6
{[%clk 0:03:30.7]} 24. Nxd4 {[%clk 0:03:13.9]} 24... Rxb2 {[%clk 0:03:30.2]} 25.
Nc6 {[%clk 0:03:10.7]} 25... Qc2 {[%clk 0:03:24.2]} 26. Rf1 {[%clk 0:03:05.3]}
26... Qe4+ {[%clk 0:03:22.2]} 27. Kg1 {[%clk 0:03:02.2]} 27... Qf3 {[%clk
0:03:19.9]} 28. Rab1 {[%clk 0:02:49.8]} 28... Qxa3 {[%clk 0:03:17.9]} 29. Rxb2
{[%clk 0:02:46.4]} 29... Qxb2 {[%clk 0:03:17]} 30. Ne7+ {[%clk 0:02:44.5]} 30...
Kh7 {[%clk 0:03:15.2]} 31. Qd6 {[%clk 0:02:43.4]} 31... a5 {[%clk 0:03:08.2]}
32. Nc6 {[%clk 0:02:39.6]} 32... Rc8 {[%clk 0:03:02.7]} 33. Nxa5 {[%clk
0:02:36.6]} 33... Rc2 {[%clk 0:02:51.6]} 34. Nc6 {[%clk 0:02:33.4]} 34... Re2
{[%clk 0:02:48.9]} 35. Qe7 {[%clk 0:02:26.9]} 35... Qb6 {[%clk 0:02:40.5]} 36.
Nd8 {[%clk 0:02:22.9]} 36... Rxe5 {[%clk 0:02:38.6]} 37. Nxf7 {[%clk 0:02:20.5]}
37... Rf5 {[%clk 0:02:36]} 38. Kg2 {[%clk 0:02:17.2]} 38... d4 {[%clk
0:02:31.4]} 39. Nd6 {[%clk 0:02:14.2]} 39... Qc6+ {[%clk 0:02:29.1]} 40. Kg1
{[%clk 0:02:08]} 40... Rf6 {[%clk 0:02:28]} 41. Ne8 {[%clk 0:01:59.8]} 41... Rf5
{[%clk 0:02:23.3]} 42. Qxg7# {[%clk 0:01:58]} 1-0

[Event "Live Chess"]
[Site "Chess.com"]
[Date "2024.06.01"]
[Round "-"]
[White "Richardallis"]
[Black "NottheBishopSacrifice"]
[Result "0-1"]
[WhiteElo "2032"]
[BlackElo "2303"]
[TimeControl "300"]
[EndTime "11:43:47 PDT"]
[Termination "NottheBishopSacrifice won - game abandoned"]

1. d4 {[%clk 0:04:47.6]} 1... d5 {[%clk 0:04:58.7]} 2. Nf3 {[%clk 0:04:46.8]}
2... Nf6 {[%clk 0:04:56.9]} 3. Bg5 {[%clk 0:04:46.2]} 3... Ne4 {[%clk
0:04:55.6]} 4. Bf4 {[%clk 0:04:45.3]} 4... c5 {[%clk 0:04:55.3]} 5. c3 {[%clk
0:04:44.1]} 5... Nc6 {[%clk 0:04:54.9]} 6. Nbd2 {[%clk 0:04:43]} 6... Nxd2
{[%clk 0:04:53]} 7. Qxd2 {[%clk 0:04:41.8]} 7... cxd4 {[%clk 0:04:52.4]} 8. Nxd4
{[%clk 0:04:39.6]} 8... Nxd4 {[%clk 0:04:51.1]} 9. Qxd4 {[%clk 0:04:37]} 9... e6
{[%clk 0:04:50.2]} 10. e3 {[%clk 0:04:35.6]} 10... Qb6 {[%clk 0:04:45.7]} 11.
Qxb6 {[%clk 0:04:32.2]} 11... axb6 {[%clk 0:04:45.6]} 12. a3 {[%clk 0:04:31.2]}
12... Be7 {[%clk 0:04:43.8]} 13. Bb5+ {[%clk 0:04:29.7]} 13... Bd7 {[%clk
0:04:43]} 14. Bxd7+ {[%clk 0:04:28.1]} 14... Kxd7 {[%clk 0:04:42.9]} 15. O-O
{[%clk 0:04:26.3]} 15... Bd6 {[%clk 0:04:42.3]} 16. Bxd6 {[%clk 0:04:24.7]}
16... Kxd6 {[%clk 0:04:42.2]} 17. Rad1 {[%clk 0:04:23]} 17... b5 {[%clk
0:04:40.6]} 18. e4 {[%clk 0:04:21]} 18... Kc6 {[%clk 0:04:39.1]} 19. exd5+
{[%clk 0:04:20]} 19... exd5 {[%clk 0:04:39]} 20. Rfe1 {[%clk 0:04:18.9]} 20...
Rhe8 {[%clk 0:04:37.3]} 21. Kf1 {[%clk 0:04:17.2]} 21... Re6 {[%clk 0:04:35.7]}
22. Re3 {[%clk 0:04:14]} 22... Rxe3 {[%clk 0:04:33.9]} 23. fxe3 {[%clk
0:04:12.9]} 23... Re8 {[%clk 0:04:33.5]} 24. Kf2 {[%clk 0:04:10.2]} 24... Re4
{[%clk 0:04:32.3]} 25. Rd4 {[%clk 0:04:09.1]} 25... Rxd4 {[%clk 0:04:26.2]} 26.
exd4 {[%clk 0:04:07.7]} 26... Kd6 {[%clk 0:04:25.8]} 27. Ke3 {[%clk 0:04:04.7]}
27... Ke6 {[%clk 0:04:25.2]} 28. Kf4 {[%clk 0:04:01.2]} 28... h6 {[%clk
0:04:24.3]} 29. h4 {[%clk 0:04:00.1]} 29... Kf6 {[%clk 0:04:23.4]} 30. Kf3
{[%clk 0:03:41.4]} 30... g5 {[%clk 0:04:21.3]} 31. h5 {[%clk 0:03:38.7]} 31...
Kf5 {[%clk 0:04:19.6]} 32. g4+ {[%clk 0:03:36.2]} 32... Ke6 {[%clk 0:04:18.5]}
33. b3 {[%clk 0:03:28.7]} 33... f5 {[%clk 0:04:17.1]} 34. Kg3 {[%clk 0:03:27.8]}
34... fxg4 {[%clk 0:04:15.5]} 35. Kxg4 {[%clk 0:03:27]} 35... Kf6 {[%clk
0:04:14.3]} 36. a4 {[%clk 0:03:03.4]} 36... bxa4 {[%clk 0:04:12.3]} 37. bxa4
{[%clk 0:03:02.9]} 37... b6 {[%clk 0:04:11.3]} 38. Kg3 {[%clk 0:02:59]} 38...
Kf5 {[%clk 0:04:09]} 39. Kf3 {[%clk 0:02:58.4]} 39... Ke6 {[%clk 0:04:07.7]} 40.
Kg4 {[%clk 0:02:55.3]} 40... Kd6 {[%clk 0:04:07.3]} 41. Kf5 {[%clk 0:02:53.4]}
41... Kc6 {[%clk 0:04:06.5]} 42. Kg6 {[%clk 0:02:52.9]} 42... g4 {[%clk
0:04:05]} 43. Kxh6 {[%clk 0:02:52.5]} 43... g3 {[%clk 0:04:04.9]} 44. Kg7 {[%clk
0:02:51.4]} 44... g2 {[%clk 0:04:04.5]} 45. h6 {[%clk 0:02:50.4]} 45... g1=Q+
{[%clk 0:04:03.8]} 46. Kf6 {[%clk 0:02:49.9]} 46... Qh2 {[%clk 0:04:02.3]} 47.
Kg7 {[%clk 0:02:47.6]} 47... Qg3+ {[%clk 0:04:01.3]} 48. Kf6 {[%clk 0:02:46]}
48... Qh4+ {[%clk 0:04:00.3]} 49. Kg6 {[%clk 0:02:44.6]} 49... Qg4+ {[%clk
0:03:59.7]} 50. Kf6 {[%clk 0:02:43.7]} 50... Qg8 {[%clk 0:03:58.5]} 51. a5
{[%clk 0:02:40.1]} 51... Qh8+ {[%clk 0:03:57.1]} 52. Kg6 {[%clk 0:02:38.8]}
52... bxa5 {[%clk 0:03:56.5]} 53. h7 {[%clk 0:02:37.5]} 53... a4 {[%clk
0:03:56]} 54. Kf7 {[%clk 0:02:36.1]} 54... Qxh7+ {[%clk 0:03:54.2]} 55. Kf6
{[%clk 0:02:33.8]} 55... a3 {[%clk 0:03:53.5]} 56. c4 {[%clk 0:02:33]} 56... a2
{[%clk 0:03:52.6]} 57. Ke5 {[%clk 0:02:31.4]} 57... Qe4+ {[%clk 0:03:49.2]} 58.
Kf6 {[%clk 0:02:29.8]} 58... Qxd4+ {[%clk 0:03:49]} 59. Kf5 {[%clk 0:02:28.8]}
59... Qxc4 {[%clk 0:03:48.9]} 60. Ke6 {[%clk 0:02:27.2]} 60... a1=Q {[%clk
0:03:48.8]} 61. Kf5 {[%clk 0:02:25.8]} 61... Qe1 {[%clk 0:03:48.5]} 62. Kg5
{[%clk 0:02:22.7]} 62... Qcf1 {[%clk 0:03:48.4]} 63. Kg4 {[%clk 0:02:20]} 63...
Qef2 {[%clk 0:03:48.3]} 64. Kh5 {[%clk 0:02:17.7]} 64... Q2g2 {[%clk 0:03:48.2]}
0-1

[Event "Live Chess"]
[Site "Chess.com"]
[Date "2024.06.01"]
[Round "-"]
[White "matt1979"]
[Black "KeithArkell"]
[Result "0-1"]
[WhiteElo "1374"]
[BlackElo "2496"]
[TimeControl "300"]
[EndTime "11:43:49 PDT"]
[Termination "KeithArkell won by checkmate"]

1. f4 {[%clk 0:04:58.7]} 1... d5 {[%clk 0:04:57.7]} 2. e3 {[%clk 0:04:57]} 2...
Nf6 {[%clk 0:04:56.2]} 3. Nf3 {[%clk 0:04:56.1]} 3... Bg4 {[%clk 0:04:55.3]} 4.
Be2 {[%clk 0:04:53.9]} 4... Nbd7 {[%clk 0:04:54.4]} 5. O-O {[%clk 0:04:52.7]}
5... c6 {[%clk 0:04:53.9]} 6. d3 {[%clk 0:04:49.9]} 6... Bxf3 {[%clk 0:04:52.8]}
7. Bxf3 {[%clk 0:04:48.7]} 7... e5 {[%clk 0:04:52.2]} 8. fxe5 {[%clk 0:04:46.5]}
8... Nxe5 {[%clk 0:04:51.4]} 9. Nc3 {[%clk 0:04:43.8]} 9... Bd6 {[%clk
0:04:50.3]} 10. b3 {[%clk 0:04:38.1]} 10... Qc7 {[%clk 0:04:49.4]} 11. h3 {[%clk
0:04:33.8]} 11... h5 {[%clk 0:04:48.1]} 12. Bb2 {[%clk 0:04:32]} 12... O-O-O
{[%clk 0:04:46.4]} 13. a4 {[%clk 0:04:18.3]} 13... g5 {[%clk 0:04:43.4]} 14. Qe1
{[%clk 0:04:05.9]} 14... g4 {[%clk 0:04:41.7]} 15. hxg4 {[%clk 0:04:02.5]} 15...
Nfxg4 {[%clk 0:04:40.5]} 16. Bxg4+ {[%clk 0:04:01.2]} 16... Nxg4 {[%clk
0:04:38.7]} 17. Nxd5 {[%clk 0:03:51.8]} 17... cxd5 {[%clk 0:04:35.7]} 18. Bxh8
{[%clk 0:03:50.3]} 18... Rxh8 {[%clk 0:04:29.8]} 19. Qe2 {[%clk 0:03:39.2]}
19... Bh2+ {[%clk 0:04:27.9]} 20. Kh1 {[%clk 0:03:37]} 20... Be5 {[%clk
0:04:21.4]} 21. Rae1 {[%clk 0:03:26.8]} 21... Bc3 {[%clk 0:04:20.2]} 22. Rd1
{[%clk 0:03:24.7]} 22... Qh2# {[%clk 0:04:19.1]} 0-1

[Event "Live Chess"]
[Site "Chess.com"]
[Date "2024.06.01"]
[Round "-"]
[White "nigelst"]
[Black "Nazar-Makarchuk"]
[Result "1/2-1/2"]
[WhiteElo "1669"]
[BlackElo "1586"]
[TimeControl "300"]
[EndTime "11:43:51 PDT"]
[Termination "Game drawn by agreement"]

1. e4 {[%clk 0:04:57.9]} 1... d5 {[%clk 0:04:59.3]} 2. exd5 {[%clk 0:04:55.8]}
2... Qxd5 {[%clk 0:04:58.1]} 3. Nc3 {[%clk 0:04:47.5]} 3... Qe6+ {[%clk
0:04:56.9]} 4. Qe2 {[%clk 0:04:45.4]} 4... Qxe2+ {[%clk 0:04:55.4]} 5. Bxe2
{[%clk 0:04:43.2]} 5... Nc6 {[%clk 0:04:55.1]} 6. Nf3 {[%clk 0:04:42.2]} 6...
Bg4 {[%clk 0:04:53.4]} 7. O-O {[%clk 0:04:41]} 7... O-O-O {[%clk 0:04:52.9]} 8.
h3 {[%clk 0:04:39.8]} 8... Bxf3 {[%clk 0:04:52.4]} 9. Bxf3 {[%clk 0:04:38.5]}
9... Nd4 {[%clk 0:04:51.4]} 10. Bd1 {[%clk 0:04:32]} 10... Nf6 {[%clk
0:04:49.1]} 11. d3 {[%clk 0:04:31]} 11... Nd5 {[%clk 0:04:47.9]} 12. Nxd5 {[%clk
0:04:28.4]} 12... Rxd5 {[%clk 0:04:46.8]} 13. Be3 {[%clk 0:04:27.5]} 13... Nf5
{[%clk 0:04:43.7]} 14. Bf3 {[%clk 0:04:17.9]} 14... Rd8 {[%clk 0:04:41.4]} 15.
Rfe1 {[%clk 0:04:12]} 15... Nxe3 {[%clk 0:04:40.3]} 16. fxe3 {[%clk 0:04:10.5]}
16... e6 {[%clk 0:04:39.6]} 17. e4 {[%clk 0:04:09.2]} 17... Bc5+ {[%clk
0:04:38.2]} 18. Kh1 {[%clk 0:04:06.7]} 18... f6 {[%clk 0:04:36.1]} 19. e5 {[%clk
0:04:05.2]} 19... Bd4 {[%clk 0:04:33.2]} 20. exf6 {[%clk 0:04:02.6]} 20... Bxf6
{[%clk 0:04:32.5]} 21. Rab1 {[%clk 0:03:58.5]} 21... b6 {[%clk 0:04:29.7]} 22.
Rxe6 {[%clk 0:03:56.6]} 22... Rhe8 {[%clk 0:04:26]} 23. Rbe1 {[%clk 0:03:54.3]}
23... Rxe6 {[%clk 0:04:24.8]} 24. Rxe6 {[%clk 0:03:52.1]} 24... Rd6 {[%clk
0:04:22.3]} 25. Rxd6 {[%clk 0:03:37.7]} 25... cxd6 {[%clk 0:04:21.1]} 26. c3
{[%clk 0:03:36.7]} 26... Kc7 {[%clk 0:04:20.6]} 27. Kg1 {[%clk 0:03:34.6]} 27...
a5 {[%clk 0:04:18.2]} 28. Kf2 {[%clk 0:03:33.5]} 28... a4 {[%clk 0:04:17.4]} 29.
a3 {[%clk 0:03:31.6]} 29... b5 {[%clk 0:04:15.8]} 30. Ke3 {[%clk 0:03:29.9]}
30... Kb6 {[%clk 0:04:15.3]} 31. Ke4 {[%clk 0:03:29]} 31... Kc5 {[%clk
0:04:12.9]} 32. Be2 {[%clk 0:03:23.4]} 32... d5+ {[%clk 0:04:09.8]} 33. Kf5
{[%clk 0:03:22]} 33... d4 {[%clk 0:04:05]} 34. c4 {[%clk 0:03:14.6]} 34... bxc4
{[%clk 0:04:03.6]} 35. dxc4 {[%clk 0:03:13.7]} 35... d3 {[%clk 0:04:00.4]} 36.
Bxd3 {[%clk 0:03:12.5]} 36... Bxb2 {[%clk 0:03:59.7]} 37. Bc2 {[%clk 0:03:11.2]}
37... Kxc4 {[%clk 0:03:56.6]} 38. Bxa4 {[%clk 0:03:09.8]} 38... Bxa3 {[%clk
0:03:56.1]} 39. Ke6 {[%clk 0:03:05.6]} 39... Bb2 {[%clk 0:03:55.4]} 40. Kf7
{[%clk 0:03:03.4]} 40... h6 {[%clk 0:03:54.9]} 41. Kg6 {[%clk 0:03:00]} 41...
Kd5 {[%clk 0:03:53.3]} 42. g4 {[%clk 0:02:58.9]} 42... Ke4 {[%clk 0:03:52.3]}
43. g5 {[%clk 0:02:57.5]} 43... hxg5 {[%clk 0:03:50.4]} 44. Kxg5 {[%clk
0:02:56.5]} 44... Bf6+ {[%clk 0:03:49.6]} 45. Kg4 {[%clk 0:02:54.1]} 45... Ke3
{[%clk 0:03:48.3]} 46. h4 {[%clk 0:02:52.8]} 46... Kf2 {[%clk 0:03:47.7]} 47. h5
{[%clk 0:02:51.7]} 47... Ke3 {[%clk 0:03:46.3]} 48. Kf5 {[%clk 0:02:50.2]} 48...
Ba1 {[%clk 0:03:43.8]} 49. Kg6 {[%clk 0:02:49.6]} 49... Kf4 {[%clk 0:03:42.2]}
1/2-1/2